[Event "December 5 Early 2023"]
[Site "https://www.chess.com"]
[Date "2023.12.05"]
[Round "8"]
[White "Matinian, Nikita"]
[Black "Erzhanov, Arman"]
[Result "1-0"]
[Board "62"]
[TimeControl "180+1"]
[WhiteFideId "24129100"]
[BlackFideId "4138821"]
[WhiteElo "2710"]
[BlackElo "2555"]
[WhiteTeam "FID"]
[BlackTeam "KAZ"]
[WhiteClock "0:00:07"]
[BlackClock "0:00:17"]

1. e4 {[%clk 0:03:00]}  d6 {[%clk 0:03:00]} 2. d4 {[%clk 0:03:01]}  Nf6 {[%clk 0:03:00]} 3. Nc3 {[%clk 0:03:01]}  c6 {[%clk 0:03:00]} 4. f4 {[%clk 0:03:01]}  d5 {[%clk 0:03:00]} 5. e5 {[%clk 0:03:01]}  Ng8 {[%clk 0:03:01]} 6. Be3 {[%clk 0:03:00]}  h5 {[%clk 0:03:00]} 7. Qd2 {[%clk 0:03:00]}  g6 {[%clk 0:03:00]} 8. Nf3 {[%clk 0:03:00]}  Nh6 {[%clk 0:03:01]} 9. O-O-O {[%clk 0:03:00]}  Bg4 {[%clk 0:03:00]} 10. Be2 {[%clk 0:02:59]}  e6 {[%clk 0:03:00]} 11. g3 {[%clk 0:02:59]}  Nf5 {[%clk 0:02:48]} 12. Bf2 {[%clk 0:02:50]}  h4 {[%clk 0:02:38]} 13. Nxh4 {[%clk 0:02:35]}  Bxe2 {[%clk 0:02:37]} 14. Nxe2 {[%clk 0:02:34]}  Nxh4 {[%clk 0:02:36]} 15. gxh4 {[%clk 0:02:35]}  Be7 {[%clk 0:02:37]} 16. Ng1 {[%clk 0:02:21]}  Bxh4 {[%clk 0:02:36]} 17. Nf3 {[%clk 0:02:21]}  Be7 {[%clk 0:02:32]} 18. h4 {[%clk 0:02:21]}  Nd7 {[%clk 0:02:31]} 19. Rdg1 {[%clk 0:02:20]}  Rh5 {[%clk 0:02:30]} 20. Nh2 {[%clk 0:02:01]}  Qb6 {[%clk 0:02:15]} 21. Nf1 {[%clk 0:02:01]}  O-O-O {[%clk 0:02:13]} 22. Ng3 {[%clk 0:02:00]}  Rh7 {[%clk 0:02:13]} 23. h5 {[%clk 0:01:59]}  gxh5 {[%clk 0:02:13]} 24. Rxh5 {[%clk 0:01:57]}  Rdh8 {[%clk 0:02:07]} 25. Rxh7 {[%clk 0:01:55]}  Rxh7 {[%clk 0:02:08]} 26. f5 {[%clk 0:01:56]}  Bf8 {[%clk 0:01:51]} 27. fxe6 {[%clk 0:01:38]}  fxe6 {[%clk 0:01:52]} 28. Ne2 {[%clk 0:01:39]}  Nxe5 {[%clk 0:01:35]} 29. Rg8 {[%clk 0:01:22]}  Rf7 {[%clk 0:01:35]} 30. Qh6 {[%clk 0:01:10]}  Nd7 {[%clk 0:01:20]} 31. Nf4 {[%clk 0:00:55]}  Rf6 {[%clk 0:00:54]} 32. Qxf6 {[%clk 0:00:43]}  Nxf6 {[%clk 0:00:53]} 33. Rxf8+ {[%clk 0:00:43]}  Kd7 {[%clk 0:00:51]} 34. Rf7+ {[%clk 0:00:36]}  Kc8 {[%clk 0:00:39]} 35. Rxf6 {[%clk 0:00:35]}  Qa6 {[%clk 0:00:40]} 36. Nxe6 {[%clk 0:00:28]}  Qxa2 {[%clk 0:00:36]} 37. Rf8+ {[%clk 0:00:20]}  Kd7 {[%clk 0:00:35]} 38. Nc5+ {[%clk 0:00:20]}  Ke7 {[%clk 0:00:34]} 39. Rb8 {[%clk 0:00:18]}  b6 {[%clk 0:00:33]} 40. Nd3 {[%clk 0:00:14]}  Qa1+ {[%clk 0:00:30]} 41. Kd2 {[%clk 0:00:14]}  Qa5+ {[%clk 0:00:29]} 42. c3 {[%clk 0:00:14]}  Qa1 {[%clk 0:00:29]} 43. Rb7+ {[%clk 0:00:07]}  Ke6 {[%clk 0:00:28]} 44. Rh7 {[%clk 0:00:07]}  Kf5 {[%clk 0:00:28]} 45. Rh5+ {[%clk 0:00:07]}  Kg4 {[%clk 0:00:28]} 46. Rh6 {[%clk 0:00:08]}  Kf3 {[%clk 0:00:27]} 47. Rf6+ {[%clk 0:00:08]}  Kg2 {[%clk 0:00:27]} 48. Rxc6 {[%clk 0:00:08]}  Qh1 {[%clk 0:00:17]} 49. Rg6+ {[%clk 0:00:07]}  Kf3 {[%clk 0:00:17]} 50. Rg3+ {[%clk 0:00:07]}  Ke4 {[%clk 0:00:16]} 51. Rg4+ {[%clk 0:00:06]}  Kf5 {[%clk 0:00:16]} 52. Rf4+ {[%clk 0:00:06]}  Kg5 {[%clk 0:00:15]} 53. Be3 {[%clk 0:00:05]}  Kg6 {[%clk 0:00:14]} 54. Rf2 {[%clk 0:00:05]}  Qh3 {[%clk 0:00:11]} 55. Nf4+ {[%clk 0:00:04]}  Kf5 {[%clk 0:00:12]} 56. Nxh3+ {[%clk 0:00:05]}  Kg4 {[%clk 0:00:12]} 57. Ng1 {[%clk 0:00:05]}  Kg3 {[%clk 0:00:12]} 58. Rf8 {[%clk 0:00:05]}  Kg4 {[%clk 0:00:13]} 59. Ne2 {[%clk 0:00:06]}  a5 {[%clk 0:00:13]} 60. Bf2 {[%clk 0:00:05]}  Kh5 {[%clk 0:00:14]} 61. Rg8 {[%clk 0:00:05]}  Kh6 {[%clk 0:00:14]} 62. Rg1 {[%clk 0:00:06]}  Kh7 {[%clk 0:00:15]} 63. Bh4 {[%clk 0:00:06]}  Kh6 {[%clk 0:00:16]} 64. Bf6 {[%clk 0:00:07]}  Kh5 {[%clk 0:00:17]} 65. Nf4+ {[%clk 0:00:07]}  Kh6 {[%clk 0:00:17]} 66. Rg6+ {[%clk 0:00:08]}  Kh7 {[%clk 0:00:18]} 67. Rg7+ {[%clk 0:00:06]}  Kh6 {[%clk 0:00:17]} 68. Rg8 {[%clk 0:00:07]}  b5 {[%clk 0:00:17]} 69. Rh8# {[%clk 0:00:07]} 1-0

[Event "December 5 Early 2023"]
[Site "https://www.chess.com"]
[Date "2023.12.05"]
[Round "8"]
[White "Iskusnyh, Sergei"]
[Black "Kislinsky, Alexey"]
[Result "1/2-1/2"]
[Board "63"]
[TimeControl "180+1"]
[WhiteFideId "4120027"]
[BlackFideId "14108801"]
[WhiteElo "2553"]
[BlackElo "2706"]
[WhiteTeam "RUS"]
[BlackTeam "CZE"]
[WhiteClock "0:00:25"]
[BlackClock "0:00:54"]

1. d4 {[%clk 0:03:00]}  Nf6 {[%clk 0:02:59]} 2. c4 {[%clk 0:03:01]}  c5 {[%clk 0:02:58]} 3. d5 {[%clk 0:03:00]}  b5 {[%clk 0:02:59]} 4. cxb5 {[%clk 0:03:00]}  a6 {[%clk 0:02:59]} 5. e3 {[%clk 0:03:00]}  e6 {[%clk 0:02:57]} 6. Nc3 {[%clk 0:02:57]}  exd5 {[%clk 0:02:56]} 7. Nxd5 {[%clk 0:02:57]}  Bb7 {[%clk 0:02:57]} 8. Bc4 {[%clk 0:02:30]}  axb5 {[%clk 0:02:51]} 9. Nxf6+ {[%clk 0:02:28]}  Qxf6 {[%clk 0:02:52]} 10. Bd5 {[%clk 0:02:28]}  Bxd5 {[%clk 0:02:44]} 11. Qxd5 {[%clk 0:02:28]}  Qc6 {[%clk 0:02:45]} 12. Qe5+ {[%clk 0:02:12]}  Qe6 {[%clk 0:02:44]} 13. Qg3 {[%clk 0:02:04]}  Nc6 {[%clk 0:02:30]} 14. Nf3 {[%clk 0:02:02]}  Qg6 {[%clk 0:02:20]} 15. Qh3 {[%clk 0:01:49]}  Qd3 {[%clk 0:02:13]} 16. Bd2 {[%clk 0:01:42]}  Be7 {[%clk 0:02:12]} 17. Bc3 {[%clk 0:01:35]}  O-O {[%clk 0:02:05]} 18. Rd1 {[%clk 0:01:34]}  Qc4 {[%clk 0:02:04]} 19. Nd2 {[%clk 0:00:58]}  Qxa2 {[%clk 0:02:02]} 20. Qxd7 {[%clk 0:00:56]}  b4 {[%clk 0:01:54]} 21. Qxc6 {[%clk 0:00:33]}  bxc3 {[%clk 0:01:53]} 22. bxc3 {[%clk 0:00:34]}  Rfd8 {[%clk 0:01:46]} 23. O-O {[%clk 0:00:32]}  Qc2 {[%clk 0:01:30]} 24. Nf3 {[%clk 0:00:30]}  Rxd1 {[%clk 0:01:24]} 25. Qxa8+ {[%clk 0:00:29]}  Bd8 {[%clk 0:01:21]} 26. g3 {[%clk 0:00:27]}  g6 {[%clk 0:01:11]} 27. Rxd1 {[%clk 0:00:26]}  Qxd1+ {[%clk 0:01:11]} 28. Kg2 {[%clk 0:00:27]}  Kg7 {[%clk 0:01:08]} 29. c4 {[%clk 0:00:27]}  Bf6 {[%clk 0:01:07]} 30. Qe4 {[%clk 0:00:27]}  h5 {[%clk 0:01:05]} 31. h4 {[%clk 0:00:27]}  Qc1 {[%clk 0:01:04]} 32. Ne5 {[%clk 0:00:26]}  Qc3 {[%clk 0:00:59]} 33. Nd3 {[%clk 0:00:25]}  Qc2 {[%clk 0:00:56]} 34. Kf3 {[%clk 0:00:24]}  Qd2 {[%clk 0:00:56]} 35. Kg2 {[%clk 0:00:25]}  Qc2 {[%clk 0:00:56]} 36. Kf3 {[%clk 0:00:25]}  Qd1+ {[%clk 0:00:54]} 37. Kg2 {[%clk 0:00:25]}  Qc2 {[%clk 0:00:54]} 1/2-1/2

[Event "December 5 Early 2023"]
[Site "https://www.chess.com"]
[Date "2023.12.05"]
[Round "8"]
[White "Tasev, Dejan"]
[Black "Khamdamova, Afruza"]
[Result "1-0"]
[Board "66"]
[TimeControl "180+1"]
[WhiteFideId "936618"]
[BlackFideId "14210444"]
[WhiteElo "2667"]
[BlackElo "2539"]
[WhiteTeam "SRB"]
[BlackTeam "UZB"]
[WhiteClock "0:00:09"]
[BlackClock "0:00:02"]

1. e4 {[%clk 0:03:00]}  e5 {[%clk 0:03:00]} 2. Nf3 {[%clk 0:03:00]}  Nc6 {[%clk 0:03:00]} 3. Bb5 {[%clk 0:02:58]}  a6 {[%clk 0:03:00]} 4. Ba4 {[%clk 0:02:59]}  Nf6 {[%clk 0:03:00]} 5. O-O {[%clk 0:02:59]}  Be7 {[%clk 0:02:59]} 6. Re1 {[%clk 0:02:59]}  b5 {[%clk 0:03:00]} 7. Bb3 {[%clk 0:02:59]}  d6 {[%clk 0:03:00]} 8. c3 {[%clk 0:02:59]}  O-O {[%clk 0:03:00]} 9. h3 {[%clk 0:02:59]}  Bb7 {[%clk 0:03:00]} 10. d4 {[%clk 0:02:59]}  Re8 {[%clk 0:03:00]} 11. Nbd2 {[%clk 0:02:59]}  Bf8 {[%clk 0:02:59]} 12. Bc2 {[%clk 0:03:00]}  h6 {[%clk 0:02:42]} 13. d5 {[%clk 0:03:00]}  Nb8 {[%clk 0:02:42]} 14. b3 {[%clk 0:03:00]}  c6 {[%clk 0:02:42]} 15. c4 {[%clk 0:03:00]}  Nbd7 {[%clk 0:02:39]} 16. Bd3 {[%clk 0:02:58]}  Nc5 {[%clk 0:02:36]} 17. Bf1 {[%clk 0:02:58]}  bxc4 {[%clk 0:02:36]} 18. bxc4 {[%clk 0:02:57]}  a5 {[%clk 0:02:35]} 19. Ba3 {[%clk 0:02:51]}  cxd5 {[%clk 0:02:33]} 20. cxd5 {[%clk 0:02:50]}  Ba6 {[%clk 0:02:30]} 21. Bxc5 {[%clk 0:02:43]}  dxc5 {[%clk 0:02:25]} 22. Bxa6 {[%clk 0:02:41]}  Rxa6 {[%clk 0:02:25]} 23. Nc4 {[%clk 0:02:41]}  Bd6 {[%clk 0:02:18]} 24. Rb1 {[%clk 0:02:39]}  Qc7 {[%clk 0:01:57]} 25. Qa4 {[%clk 0:02:25]}  Nd7 {[%clk 0:01:48]} 26. Rb3 {[%clk 0:02:14]}  Rea8 {[%clk 0:01:00]} 27. Reb1 {[%clk 0:02:09]}  R8a7 {[%clk 0:01:00]} 28. Nh4 {[%clk 0:01:50]}  g6 {[%clk 0:00:57]} 29. Nf3 {[%clk 0:01:49]}  Kg7 {[%clk 0:00:56]} 30. Nfd2 {[%clk 0:01:44]}  Be7 {[%clk 0:00:41]} 31. Nf1 {[%clk 0:01:15]}  Nf6 {[%clk 0:00:34]} 32. Na3 {[%clk 0:01:07]}  Qd7 {[%clk 0:00:26]} 33. Qc4 {[%clk 0:00:59]}  a4 {[%clk 0:00:25]} 34. R3b2 {[%clk 0:00:53]}  Ne8 {[%clk 0:00:19]} 35. Nb5 {[%clk 0:00:52]}  Rb7 {[%clk 0:00:19]} 36. Nc3 {[%clk 0:00:46]}  Rxb2 {[%clk 0:00:18]} 37. Rxb2 {[%clk 0:00:46]}  Ra7 {[%clk 0:00:18]} 38. Ne3 {[%clk 0:00:40]}  Nd6 {[%clk 0:00:18]} 39. Qd3 {[%clk 0:00:40]}  Rb7 {[%clk 0:00:19]} 40. Rc2 {[%clk 0:00:36]}  Rb4 {[%clk 0:00:18]} 41. a3 {[%clk 0:00:31]}  Rd4 {[%clk 0:00:18]} 42. Qa6 {[%clk 0:00:29]}  Nxe4 {[%clk 0:00:17]} 43. Nxe4 {[%clk 0:00:27]}  Rxe4 {[%clk 0:00:18]} 44. Rd2 {[%clk 0:00:22]}  Bg5 {[%clk 0:00:18]} 45. Rd3 {[%clk 0:00:19]}  Bxe3 {[%clk 0:00:17]} 46. fxe3 {[%clk 0:00:20]}  c4 {[%clk 0:00:16]} 47. Rd1 {[%clk 0:00:19]}  Rxe3 {[%clk 0:00:15]} 48. d6 {[%clk 0:00:19]}  c3 {[%clk 0:00:15]} 49. Qc4 {[%clk 0:00:19]}  Qa7 {[%clk 0:00:10]} 50. Kh1 {[%clk 0:00:18]}  Qd7 {[%clk 0:00:10]} 51. Qc7 {[%clk 0:00:16]}  Rxh3+ {[%clk 0:00:07]} 52. Kg1 {[%clk 0:00:14]}  Qg4 {[%clk 0:00:06]} 53. Rf1 {[%clk 0:00:13]}  Qe6 {[%clk 0:00:04]} 54. d7 {[%clk 0:00:10]}  Rd3 {[%clk 0:00:04]} 55. d8=Q {[%clk 0:00:10]}  Rxd8 {[%clk 0:00:05]} 56. Qxd8 {[%clk 0:00:11]}  c2 {[%clk 0:00:04]} 57. Qd2 {[%clk 0:00:11]}  Qb6+ {[%clk 0:00:04]} 58. Kh1 {[%clk 0:00:11]}  Qb3 {[%clk 0:00:03]} 59. Qc1 {[%clk 0:00:09]}  Qc4 {[%clk 0:00:02]} 60. Qe1 {[%clk 0:00:10]}  c1=Q {[%clk 0:00:01]} 61. Qxc1 {[%clk 0:00:10]}  Qh4+ {[%clk 0:00:02]} 62. Kg1 {[%clk 0:00:09]}  Qd4+ {[%clk 0:00:02]} 63. Rf2 {[%clk 0:00:10]}  Qd5 {[%clk 0:00:03]} 64. Qf1 {[%clk 0:00:10]}  Qd4 {[%clk 0:00:03]} 65. Qe2 {[%clk 0:00:10]}  e4 {[%clk 0:00:03]} 66. Qd2 {[%clk 0:00:09]}  Qc4 {[%clk 0:00:03]} 67. Qb2+ {[%clk 0:00:09]}  Kh7 {[%clk 0:00:03]} 68. Qf6 {[%clk 0:00:09]}  e3 {[%clk 0:00:03]} 69. Qxf7+ {[%clk 0:00:09]}  Qxf7 {[%clk 0:00:02]} 70. Rxf7+ {[%clk 0:00:09]} 1-0

[Event "December 5 Early 2023"]
[Site "https://www.chess.com"]
[Date "2023.12.05"]
[Round "8"]
[White "Masague Artero, Guerau"]
[Black "Antunez Soler, Luis"]
[Result "0-1"]
[Board "69"]
[TimeControl "180+1"]
[WhiteFideId "32098952"]
[BlackFideId "3513335"]
[WhiteElo "2526"]
[BlackElo "2655"]
[WhiteTeam "ESP"]
[BlackTeam "CUB"]
[WhiteClock "0:00:29"]
[BlackClock "0:02:08"]

1. e4 {[%clk 0:03:00]}  e6 {[%clk 0:03:00]} 2. Nc3 {[%clk 0:02:59]}  d5 {[%clk 0:03:00]} 3. d4 {[%clk 0:02:59]}  Nf6 {[%clk 0:03:00]} 4. exd5 {[%clk 0:02:57]}  exd5 {[%clk 0:03:01]} 5. Bd3 {[%clk 0:02:57]}  Bb4 {[%clk 0:03:02]} 6. Nf3 {[%clk 0:02:57]}  O-O {[%clk 0:03:02]} 7. O-O {[%clk 0:02:58]}  Bxc3 {[%clk 0:03:02]} 8. bxc3 {[%clk 0:02:58]}  Ne4 {[%clk 0:03:03]} 9. c4 {[%clk 0:02:56]}  c6 {[%clk 0:03:03]} 10. h3 {[%clk 0:02:44]}  Re8 {[%clk 0:02:59]} 11. Re1 {[%clk 0:02:36]}  Bf5 {[%clk 0:02:58]} 12. Bf4 {[%clk 0:02:10]}  Nd7 {[%clk 0:02:56]} 13. Rb1 {[%clk 0:02:09]}  Nc3 {[%clk 0:02:55]} 14. Rxe8+ {[%clk 0:02:00]}  Qxe8 {[%clk 0:02:53]} 15. Qc1 {[%clk 0:02:00]}  Nxb1 {[%clk 0:02:53]} 16. Bxf5 {[%clk 0:01:55]}  Nc3 {[%clk 0:02:53]} 17. Kh2 {[%clk 0:01:42]}  Ne2 {[%clk 0:02:52]} 18. Qd2 {[%clk 0:01:43]}  Nxf4 {[%clk 0:02:53]} 19. Qxf4 {[%clk 0:01:43]}  dxc4 {[%clk 0:02:37]} 20. Qc7 {[%clk 0:01:41]}  Qb8 {[%clk 0:02:30]} 21. Qxb8+ {[%clk 0:01:37]}  Nxb8 {[%clk 0:02:31]} 22. Bc8 {[%clk 0:01:37]}  a5 {[%clk 0:02:31]} 23. Bxb7 {[%clk 0:01:29]}  Ra7 {[%clk 0:02:31]} 24. Bc8 {[%clk 0:01:29]}  Rc7 {[%clk 0:02:23]} 25. Bf5 {[%clk 0:01:27]}  Nd7 {[%clk 0:02:16]} 26. Kg3 {[%clk 0:01:26]}  Nb6 {[%clk 0:02:13]} 27. Kf4 {[%clk 0:01:24]}  g6 {[%clk 0:02:11]} 28. Be4 {[%clk 0:00:36]}  f5 {[%clk 0:02:10]} 29. Bxf5 {[%clk 0:00:29]}  gxf5 {[%clk 0:02:08]} 0-1

[Event "December 5 Early 2023"]
[Site "https://www.chess.com"]
[Date "2023.12.05"]
[Round "8"]
[White "Kuderinov, Kirill"]
[Black "Gutierrez Olivares, Daniel"]
[Result "1-0"]
[Board "70"]
[TimeControl "180+1"]
[WhiteFideId "13701568"]
[BlackFideId "2264005"]
[WhiteElo "2651"]
[BlackElo "2521"]
[WhiteTeam "KAZ"]
[BlackTeam "ESP"]
[WhiteClock "0:00:55"]
[BlackClock "0:01:05"]

1. e4 {[%clk 0:01:48]}  e6 {[%clk 0:02:57]} 2. d4 {[%clk 0:01:47]}  d5 {[%clk 0:02:58]} 3. Nc3 {[%clk 0:01:48]}  Bb4 {[%clk 0:02:58]} 4. e5 {[%clk 0:01:48]}  Ne7 {[%clk 0:02:59]} 5. f4 {[%clk 0:01:41]}  c5 {[%clk 0:02:55]} 6. Nf3 {[%clk 0:01:40]}  Nbc6 {[%clk 0:02:53]} 7. Bd2 {[%clk 0:01:40]}  Nf5 {[%clk 0:02:43]} 8. Nb5 {[%clk 0:01:39]}  Bxd2+ {[%clk 0:02:36]} 9. Qxd2 {[%clk 0:01:39]}  O-O {[%clk 0:02:36]} 10. dxc5 {[%clk 0:01:39]}  f6 {[%clk 0:02:33]} 11. O-O-O {[%clk 0:01:35]}  fxe5 {[%clk 0:02:33]} 12. fxe5 {[%clk 0:01:36]}  Bd7 {[%clk 0:02:27]} 13. Bd3 {[%clk 0:01:33]}  Nce7 {[%clk 0:02:18]} 14. Bxf5 {[%clk 0:01:30]}  Nxf5 {[%clk 0:02:14]} 15. Nd6 {[%clk 0:01:30]}  Qc7 {[%clk 0:02:10]} 16. Nxf5 {[%clk 0:01:19]}  Rxf5 {[%clk 0:02:10]} 17. Qd4 {[%clk 0:01:17]}  Raf8 {[%clk 0:02:08]} 18. Rhe1 {[%clk 0:01:11]}  Rf4 {[%clk 0:02:07]} 19. Qe3 {[%clk 0:01:10]}  Rc4 {[%clk 0:02:07]} 20. Kb1 {[%clk 0:01:04]}  Rxc5 {[%clk 0:02:07]} 21. Nd4 {[%clk 0:01:03]}  Rc4 {[%clk 0:01:58]} 22. Rf1 {[%clk 0:01:02]}  Rxf1 {[%clk 0:01:42]} 23. Rxf1 {[%clk 0:01:03]}  Qb6 {[%clk 0:01:43]} 24. Qf4 {[%clk 0:00:55]}  h6 {[%clk 0:01:41]} 25. Qf8+ {[%clk 0:00:54]}  Kh7 {[%clk 0:01:05]} 26. Rf7 {[%clk 0:00:55]} 1-0

[Event "December 5 Early 2023"]
[Site "https://www.chess.com"]
[Date "2023.12.05"]
[Round "8"]
[White "Buksa, Nataliya"]
[Black "Spata, German"]
[Result "0-1"]
[Board "72"]
[TimeControl "180+1"]
[WhiteFideId "14123622"]
[BlackFideId "113026"]
[WhiteElo "2516"]
[BlackElo "2642"]
[WhiteTeam "UKR"]
[BlackTeam "ARG"]
[WhiteClock "0:00:14"]
[BlackClock "0:00:13"]

1. d4 {[%clk 0:03:00]}  Nf6 {[%clk 0:02:52]} 2. Nc3 {[%clk 0:03:01]}  e6 {[%clk 0:02:35]} 3. Bf4 {[%clk 0:03:01]}  a6 {[%clk 0:02:29]} 4. a3 {[%clk 0:03:00]}  d5 {[%clk 0:02:27]} 5. e3 {[%clk 0:03:00]}  Bd6 {[%clk 0:02:27]} 6. Nf3 {[%clk 0:03:00]}  O-O {[%clk 0:02:26]} 7. Bd3 {[%clk 0:03:00]}  b6 {[%clk 0:02:24]} 8. O-O {[%clk 0:02:58]}  Bb7 {[%clk 0:02:24]} 9. Ne5 {[%clk 0:02:58]}  Ne4 {[%clk 0:02:22]} 10. Qe1 {[%clk 0:02:41]}  f5 {[%clk 0:02:17]} 11. f3 {[%clk 0:02:27]}  Nxc3 {[%clk 0:02:06]} 12. bxc3 {[%clk 0:02:21]}  Nd7 {[%clk 0:01:59]} 13. Qg3 {[%clk 0:02:16]}  Nxe5 {[%clk 0:01:54]} 14. Bxe5 {[%clk 0:02:16]}  Bxe5 {[%clk 0:01:54]} 15. Qxe5 {[%clk 0:02:17]}  Qd6 {[%clk 0:01:48]} 16. Qxd6 {[%clk 0:02:10]}  cxd6 {[%clk 0:01:48]} 17. c4 {[%clk 0:02:11]}  Rfc8 {[%clk 0:01:44]} 18. cxd5 {[%clk 0:02:08]}  Bxd5 {[%clk 0:01:43]} 19. a4 {[%clk 0:02:05]}  Bc4 {[%clk 0:01:40]} 20. Rfb1 {[%clk 0:02:05]}  Rab8 {[%clk 0:01:24]} 21. Ra3 {[%clk 0:01:56]}  Kf7 {[%clk 0:01:08]} 22. h4 {[%clk 0:01:50]}  Ke7 {[%clk 0:01:08]} 23. Rc3 {[%clk 0:01:20]}  Bxd3 {[%clk 0:01:07]} 24. Rxc8 {[%clk 0:01:19]}  Rxc8 {[%clk 0:01:07]} 25. cxd3 {[%clk 0:01:20]}  Rb8 {[%clk 0:01:00]} 26. Kf2 {[%clk 0:01:02]}  Kd7 {[%clk 0:01:00]} 27. d5 {[%clk 0:01:01]}  exd5 {[%clk 0:00:58]} 28. Kg3 {[%clk 0:01:01]}  b5 {[%clk 0:00:52]} 29. axb5 {[%clk 0:01:00]}  axb5 {[%clk 0:00:52]} 30. Rb4 {[%clk 0:01:00]}  Kc6 {[%clk 0:00:52]} 31. d4 {[%clk 0:00:58]}  Kb6 {[%clk 0:00:36]} 32. Kf4 {[%clk 0:00:53]}  g6 {[%clk 0:00:30]} 33. Rb1 {[%clk 0:00:47]}  Ka5 {[%clk 0:00:30]} 34. h5 {[%clk 0:00:35]}  b4 {[%clk 0:00:29]} 35. hxg6 {[%clk 0:00:30]}  hxg6 {[%clk 0:00:30]} 36. Kg5 {[%clk 0:00:30]}  Ka4 {[%clk 0:00:22]} 37. Kxg6 {[%clk 0:00:30]}  b3 {[%clk 0:00:23]} 38. Kxf5 {[%clk 0:00:30]}  Ka3 {[%clk 0:00:23]} 39. Ke6 {[%clk 0:00:28]}  Ka2 {[%clk 0:00:19]} 40. Re1 {[%clk 0:00:15]}  b2 {[%clk 0:00:17]} 41. Re2 {[%clk 0:00:13]}  Ka3 {[%clk 0:00:15]} 42. Rxb2 {[%clk 0:00:13]}  Kxb2 {[%clk 0:00:15]} 43. Kxd6 {[%clk 0:00:13]}  Rd8+ {[%clk 0:00:14]} 44. Ke5 {[%clk 0:00:13]}  Kc3 {[%clk 0:00:13]} 45. g4 {[%clk 0:00:13]}  Kd3 {[%clk 0:00:14]} 46. f4 {[%clk 0:00:13]}  Kxe3 {[%clk 0:00:14]} 47. f5 {[%clk 0:00:13]}  Re8+ {[%clk 0:00:12]} 48. Kf6 {[%clk 0:00:10]}  Kf4 {[%clk 0:00:11]} 49. g5 {[%clk 0:00:10]}  Rf8+ {[%clk 0:00:11]} 50. Ke6 {[%clk 0:00:11]}  Rxf5 {[%clk 0:00:11]} 51. g6 {[%clk 0:00:11]}  Rg5 {[%clk 0:00:11]} 52. Kf6 {[%clk 0:00:12]}  Rg1 {[%clk 0:00:10]} 53. g7 {[%clk 0:00:12]}  Ke4 {[%clk 0:00:10]} 54. Kf7 {[%clk 0:00:12]}  Kxd4 {[%clk 0:00:10]} 55. g8=Q {[%clk 0:00:12]}  Rxg8 {[%clk 0:00:10]} 56. Kxg8 {[%clk 0:00:13]}  Ke3 {[%clk 0:00:11]} 57. Kf7 {[%clk 0:00:14]}  d4 {[%clk 0:00:12]} 58. Ke6 {[%clk 0:00:14]}  d3 {[%clk 0:00:13]} 0-1

[Event "December 5 Early 2023"]
[Site "https://www.chess.com"]
[Date "2023.12.05"]
[Round "8"]
[White "Budrewicz, Krzysztof"]
[Black "Gimenez Aguirre, Alejo Ismael"]
[Result "0-1"]
[Board "74"]
[TimeControl "180+1"]
[WhiteFideId "1127950"]
[BlackFideId "32041667"]
[WhiteElo "2511"]
[BlackElo "2626"]
[WhiteTeam "POL"]
[BlackTeam "ARG"]
[WhiteClock "0:00:35"]
[BlackClock "0:00:55"]

1. d4 {[%clk 0:03:00]}  Nf6 {[%clk 0:02:56]} 2. c4 {[%clk 0:03:00]}  e6 {[%clk 0:02:57]} 3. Nf3 {[%clk 0:03:00]}  c5 {[%clk 0:02:57]} 4. d5 {[%clk 0:03:01]}  exd5 {[%clk 0:02:58]} 5. cxd5 {[%clk 0:03:01]}  d6 {[%clk 0:02:59]} 6. Nc3 {[%clk 0:03:02]}  g6 {[%clk 0:03:00]} 7. Bf4 {[%clk 0:03:01]}  a6 {[%clk 0:02:58]} 8. a4 {[%clk 0:03:01]}  Bg7 {[%clk 0:02:59]} 9. e3 {[%clk 0:03:01]}  O-O {[%clk 0:02:59]} 10. h3 {[%clk 0:03:02]}  Re8 {[%clk 0:02:59]} 11. Nd2 {[%clk 0:03:00]}  Qc7 {[%clk 0:02:58]} 12. Be2 {[%clk 0:02:59]}  Nbd7 {[%clk 0:02:57]} 13. O-O {[%clk 0:02:58]}  Ne5 {[%clk 0:02:57]} 14. Qc2 {[%clk 0:02:58]}  b6 {[%clk 0:02:56]} 15. Rfe1 {[%clk 0:02:53]}  Bb7 {[%clk 0:02:46]} 16. e4 {[%clk 0:02:50]}  h6 {[%clk 0:02:40]} 17. Bh2 {[%clk 0:02:46]}  g5 {[%clk 0:02:41]} 18. Bxe5 {[%clk 0:02:44]}  Rxe5 {[%clk 0:02:39]} 19. Nc4 {[%clk 0:02:44]}  Ree8 {[%clk 0:02:40]} 20. Ra3 {[%clk 0:02:35]}  Nd7 {[%clk 0:02:31]} 21. Rb3 {[%clk 0:02:34]}  Rab8 {[%clk 0:02:24]} 22. Ne3 {[%clk 0:02:34]}  Bc8 {[%clk 0:02:20]} 23. Nf5 {[%clk 0:02:31]}  Bf8 {[%clk 0:02:20]} 24. Nd1 {[%clk 0:02:24]}  Ne5 {[%clk 0:02:12]} 25. Nde3 {[%clk 0:02:23]}  Bd7 {[%clk 0:02:08]} 26. Rc3 {[%clk 0:02:19]}  b5 {[%clk 0:02:06]} 27. axb5 {[%clk 0:02:19]}  axb5 {[%clk 0:02:07]} 28. b4 {[%clk 0:02:18]}  c4 {[%clk 0:02:08]} 29. g3 {[%clk 0:02:16]}  Ng6 {[%clk 0:02:04]} 30. Ng4 {[%clk 0:02:09]}  Bxf5 {[%clk 0:01:32]} 31. exf5 {[%clk 0:02:06]}  Ne5 {[%clk 0:01:32]} 32. Nf6+ {[%clk 0:02:05]}  Kh8 {[%clk 0:01:28]} 33. Nxe8 {[%clk 0:02:04]}  Rxe8 {[%clk 0:01:29]} 34. Re3 {[%clk 0:01:59]}  Bg7 {[%clk 0:01:24]} 35. f4 {[%clk 0:01:58]}  Qb6 {[%clk 0:01:24]} 36. Qd2 {[%clk 0:01:40]}  c3 {[%clk 0:01:23]} 37. Qc1 {[%clk 0:01:38]}  gxf4 {[%clk 0:01:15]} 38. gxf4 {[%clk 0:01:38]}  Nd7 {[%clk 0:01:01]} 39. Bd3 {[%clk 0:01:28]}  Bd4 {[%clk 0:01:00]} 40. Kf2 {[%clk 0:01:27]}  Nf6 {[%clk 0:00:59]} 41. Kf3 {[%clk 0:01:26]}  Bxe3 {[%clk 0:00:55]} 42. Rxe3 {[%clk 0:01:26]}  Rxe3+ {[%clk 0:00:55]} 43. Qxe3 {[%clk 0:01:26]}  Qxe3+ {[%clk 0:00:56]} 44. Kxe3 {[%clk 0:01:26]}  Nxd5+ {[%clk 0:00:57]} 45. Kd4 {[%clk 0:00:35]}  Nxb4 {[%clk 0:00:55]} 0-1